Cogmind - Beta 15 @@@ ROGUE MODE // 2025.07.26 @ 12:01:58 Player: FrigidRock Result: Destroyed by X-77 Beamer with Gatling Laser Performance ------------- Evolutions (5) 2500 Regions Visited (14) 2800 Robots Destroyed (127) 635 Value Destroyed (6016) 6016 Prototype IDs (11) 220 Alien Tech Used (0) 0 Bonus (5189) 5189 TOTAL SCORE: 17360 Bonus ------- High Alert Combat Kills 742 Follower Combat Kills 947 Entered Garrisons 1000 Used RIF Installer 2500 Cogmind --------- Core Integrity 0/1000 Matter 300/300 Energy 99/100 System Corruption 0% Temperature Cool (12) Movement Core (50) Location -5/Garrison Parts ------- > --- POWER (1) -------- (None) > --- PROPULSION (4) --- (None) > --- UTILITY (10) ----- (None) > --- WEAPON (2) ------- (None) > --- INVENTORY (5) ---- Improved Deuterium Engine Relay Coupler [Brawler] (24) Relay Coupler [Duelist] (22) Relay Coupler [Sentry] (20) Improved Remote Datajack Peak State ------------ > --- POWER ------------ Reinforced Fission Core > --- PROPULSION ------- Carbon-fiber Leg Carbon-fiber Leg Carbon-fiber Leg Thunder Leg > --- UTILITY ---------- Advanced Heat Sink Advanced Cooling System Large Storage Unit Advanced Targeting Computer Improved Medium Armor Plating Relay Coupler [Swarmer] Relay Coupler [Grunt] Relay Coupler [Grunt] Relay Coupler [Duelist] Relay Coupler [Hunter] > --- WEAPON ----------- Mass Driver Improved Remote Datajack > --- INVENTORY -------- Improved Deuterium Engine Improved Deuterium Engine Reinforced Deuterium Engine Layered Medium Armor Plating Relay Coupler [NC] Relay Coupler [Swarmer] Relay Coupler [Duelist] Relay Coupler [Duelist] Relay Coupler [Sentry] Relay Coupler [Sentry] Relay Coupler [Demolisher] Relay Coupler [Demolisher] Relay Coupler [Hunter] Improved Heavy Machine Gun [Rating: 74] Favorites ----------- Power Light Nuclear Core Engine Improved Ion Engine Power Core Light Nuclear Core Propulsion Carbon-fiber Leg Treads Light Treads Leg Carbon-fiber Leg Wheel Wheel Flight Unit Flight Unit Utility Large Storage Unit Device Terrain Scanner Storage Large Storage Unit Processor Terrain Scan Processor Hackware Relay Coupler [Swarmer] Protection Improved Light Armor Plating Weapon Gauss Cannon Energy Gun Medium Laser Energy Cannon EM Pulse Cannon Ballistic Gun Gauss Rifle Ballistic Cannon Gauss Cannon Launcher Rocket Launcher Special Weapon Remote Datajack Slashing Weapon Ripper Build | -11 -10 -10 -10 -9 -8 -8 -7 -7 -7 -7 -6 -6 -5 -5 ------- Run | Yrd Mat Min Exi Min Mat Gar Fac Gar Fac Gar Fac Gar Fac Gar Slots Evolved 10 | . . . . . 4 . 2 . . . 2 . 2 . Power . | . . . . . . . . . . . . . . . Propulsion 2 | . . . . . 1 . . . . . 1 . . . Utility 8 | . . . . . 3 . 2 . . . 1 . 2 . Weapon . | . . . . . . . . . . . . . . . Parts Attached 147 | 7 4 1 . 2 28 10 21 6 . 13 5 29 14 7 Power 19 | 1 1 . . . 3 2 4 . . 1 2 3 2 . Engine 10 | 1 . . . . 1 1 1 . . . 2 3 1 . Core 9 | . 1 . . . 2 1 3 . . 1 . . 1 . Reactor . | . . . . . . . . . . . . . . . Propulsion 43 | 2 2 . . . 11 3 6 2 . 2 1 9 2 3 Treads 2 | . . . . . . 1 1 . . . . . . . Leg 34 | 2 2 . . . 7 . 4 2 . 2 1 9 2 3 Wheel 5 | . . . . . 4 . 1 . . . . . . . Hover . | . . . . . . . . . . . . . . . Flight 2 | . . . . . . 2 . . . . . . . . Utility 56 | 2 1 1 . 1 8 3 7 1 . 9 2 11 6 4 Device 16 | 1 . 1 . 1 4 1 2 . . 1 1 2 2 . Storage 4 | 1 . . . . 2 . . . . 1 . . . . Processor 8 | . 1 . . . 1 1 3 . . . 1 . 1 . Hackware 18 | . . . . . . . . . . 7 . 7 . 4 Protection 10 | . . . . . 1 1 2 1 . . . 2 3 . Artifact . | . . . . . . . . . . . . . . . Weapon 29 | 2 . . . 1 6 2 4 3 . 1 . 6 4 . Energy Gun 8 | 1 . . . . 3 1 . . . . . 3 . . Energy Cannon 1 | . . . . . 1 . . . . . . . . . Ballistic Gun 10 | 1 . . . . 2 . 2 2 . . . 2 1 . Ballistic Cannon 4 | . . . . . . . 2 . . . . . 2 . Launcher 3 | . . . . 1 . 1 . 1 . . . . . . Special Weapon 2 | . . . . . . . . . . 1 . . 1 . Impact Weapon . | . . . . . . . . . . . . . . . Slashing Weapon 1 | . . . . . . . . . . . . 1 . . Piercing Weapon . | . . . . . . . . . . . . . . . Special Melee Weapon . | . . . . . . . . . . . . . . . Unidentified Prototypes 5 | . . . . 1 3 . . . . . . . 1 . Corrupted Parts 4 | . . . . . . . . . . . . 4 . . System Corruption 19 | . . . . . . . . . . . . 19 . . Parts Lost 61 | . 3 . . . 3 9 1 1 . 1 4 25 1 13 Power 6 | . . . . . . 2 1 . . . . 3 . . Propulsion 26 | . 2 . . . 1 3 . 1 . 1 . 10 1 7 Utility 19 | . 1 . . . 2 2 . . . . 3 7 . 4 Weapon 10 | . . . . . . 2 . . . . 1 5 . 2 Highest Loss Streak 13 | . 2 . . . 1 3 1 1 . 1 3 13 1 8 To Critical Strikes . | . . . . . . . . . . . . . . . Average Backups 10 | 1 2 4 5 5 5 12 14 14 15 13 13 8 14 13 Power 1 | . 1 1 1 . . . 1 1 1 1 1 . 3 2 Propulsion . | . . . . . . . 1 1 1 . . . 1 . Utility 4 | . . 1 1 1 1 3 4 5 8 7 7 6 9 10 Weapon 3 | . 1 2 3 3 3 7 6 4 4 4 3 . . . Tool/Special . | . . . . . . . . . . . . . . . Unused Backups 31 | . . . . 2 5 3 4 2 . 1 . 1 3 10 Power 5 | . . . . 1 . . 1 . . . . . 2 1 Propulsion 5 | . . . . . 2 1 . 1 . . . . 1 . Utility 12 | . . . . . . . 1 1 . . . 1 . 9 Weapon 9 | . . . . 1 3 2 2 . . 1 . . . . Tool/Special . | . . . . . . . . . . . . . . . Average Slot Usage (%) 93 | . 96 98 100 100 96 88 97 99 97 97 91 80 94 82 Engine 2 | . 11 . . . 2 6 2 . . . 2 5 4 . Core 5 | . 2 14 14 14 6 2 4 7 7 7 3 . . 4 Treads 1 | . . . . . . 7 3 . . . . . . . Leg 20 | . 26 28 28 28 18 7 17 22 21 22 26 21 22 18 Device 11 | . 12 12 14 14 26 11 14 7 7 3 7 4 11 7 Storage 5 | . 10 . . . 3 9 7 7 7 7 6 2 5 4 Processor 14 | . 3 14 14 14 11 17 22 23 23 15 18 9 9 6 Hackware 7 | . . . . . . . . . . 14 8 21 17 24 Protection 4 | . . . . . 1 3 5 15 13 10 2 1 7 3 Energy Gun 5 | . 14 14 14 14 6 15 1 . . . . 4 . . Ballistic Gun 5 | . 14 14 14 6 4 . 1 6 7 6 9 3 2 2 Ballistic Cannon 2 | . . . . . . . 10 4 . . . . 5 3 Launcher 1 | . . . . 7 4 2 . 3 7 2 . . . . Peak Build Rating 74 | 9 12 10 10 17 33 33 44 43 42 50 54 57 73 74 Average Rating 36 | 5 9 9 10 12 27 26 40 42 41 46 50 45 65 61 On Entrance 29 | . 9 9 10 10 12 31 26 41 42 42 42 50 54 70 Naked Turns 26 | . . . . . . . . . . . . . . 26 Heaviest Build 67 | 14 14 9 9 12 56 56 51 49 46 46 41 47 67 67 Greatest Support 68 | 20 20 20 20 20 51 36 58 58 53 53 67 67 68 68 Greatest Overweight (x) 9 | . 4 . . . 5 5 2 . 1 . . 9 1 2 Average Overweight (x) . | . . . . . 1 1 . . . . . . . . Largest Inventory Capacity 15 | 8 8 5 5 5 15 15 15 15 15 15 15 15 15 15 Average Capacity 11 | 7 7 5 5 5 8 15 15 15 15 15 15 9 15 14 Most Carried 15 | 2 4 5 5 5 9 15 15 15 15 15 14 15 15 15 Average Carried 10 | 1 2 4 5 5 5 12 14 14 15 13 13 8 14 13 Final Capacity 15 | 8 5 5 5 5 15 15 15 15 15 15 15 15 15 5 Final Carried 15 | 2 4 5 5 5 9 14 15 15 15 15 14 15 15 5 Class Distribution -------------------- 44% | Scavenger-Mutant 18% | Scavenger-Skirmisher 13% | Bothacker-Mutant 8% | Mutant 6% | Skirmisher 5% | Botlord-Mutant Dominant Class ---------------- Mutant | -10/Materials Scavenger-Mutant | -10/Mines Scavenger-Mutant | -10/Exiles Scavenger-Mutant | -9/Mines Skirmisher | -8/Materials Scavenger-Mutant | -8/Garrison Scavenger-Skirmisher | -7/Factory Scavenger-Skirmisher | -7/Garrison Bothacker-Skirmisher | -7/Factory Bothacker-Mutant | -7/Garrison Bothacker-Mutant | -6/Factory Scavenger-Mutant | -6/Garrison Scavenger-Mutant | -5/Factory Botlord-Mutant | -5/Garrison Resources | -11 -10 -10 -10 -9 -8 -8 -7 -7 -7 -7 -6 -6 -5 -5 ----------- Run | Yrd Mat Min Exi Min Mat Gar Fac Gar Fac Gar Fac Gar Fac Gar Matter Collected 4606 | 277 97 12 . 22 666 132 762 630 . 523 100 648 358 379 Remotely . | . . . . . . . . . . . . . . . Salvage Created 4196 | 107 308 . . . 915 294 691 614 . 40 135 624 415 53 Parts 233 | 7 16 . . . 63 19 53 20 . 1 4 26 21 3 Haulers Intercepted 3 | . 1 . . . 1 . 1 . . . . . . . Recyclers Shooed 1 | . 1 . . . . . . . . . . . . . Parts Field Recycled . | . . . . . . . . . . . . . . . Retrieved Matter . | . . . . . . . . . . . . . . . Parts Self-Destructed . | . . . . . . . . . . . . . . . Prevented . | . . . . . . . . . . . . . . . Kills | -11 -10 -10 -10 -9 -8 -8 -7 -7 -7 -7 -6 -6 -5 -5 ------- Run | Yrd Mat Min Exi Min Mat Gar Fac Gar Fac Gar Fac Gar Fac Gar Combat Hostiles Destroyed 92 | . 8 . . . 25 10 8 11 . 1 2 16 9 2 Guns 41 | . 8 . . . 6 6 2 5 . 1 2 9 . 2 Cannons 13 | . . . . . . . 6 3 . . . . 4 . AOE 36 | . . . . . 19 4 . 3 . . . 5 5 . Classes Destroyed 18 | 2 3 . . . 7 1 2 1 . . . 1 1 . Worker 11 | . . . . . 7 . 4 . . . . . . . Builder 6 | . . . . . 1 . 4 . . . . . 1 . Tunneler 1 | 1 . . . . . . . . . . . . . . Hauler 3 | . 1 . . . 1 . 1 . . . . . . . Recycler 3 | 1 . . . . 1 . 1 . . . . . . . Operator 3 | . . . . . 2 . 1 . . . . . . . Drone 1 | . . . . . 1 . . . . . . . . . Watcher 8 | . . . . . 2 . 5 . . . . . 1 . Swarmer 22 | . 3 . . . 10 3 . . . . . 5 . 1 Cutter 2 | . . . . . . 2 . . . . . . . . Grunt 41 | . 5 . . . 10 1 . 6 . . 2 9 8 . Brawler 1 | . . . . . . . . . . . . . 1 . Duelist 2 | . . . . . . . . 2 . . . . . . Sentry 13 | . . . . . 3 4 2 3 . . . 1 . . Specialist 3 | . . . . . 2 . . . . . . . . 1 Hunter 1 | . . . . . . . 1 . . . . . . . Programmer 6 | . . . . . . . 5 . . 1 . . . . Behemoth 1 | . . . . . . . . . . . . 1 . . Best Kill Streak 9 | 2 4 . . . 9 3 4 4 . 1 2 3 5 1 Combat Bots Only 5 | . 4 . . . 5 3 2 4 . 1 2 3 5 1 Max Kills in Single Turn 5 | 1 1 . . . 3 2 2 1 . 1 1 2 5 1 Gunslinging . | . . . . . . . . . . . . . . . Exploded 5 | . . . . . 3 2 . 1 . . . 2 5 . Melee . | . . . . . . . . . . . . . . . Uniques/NPCs Destroyed . | . . . . . . . . . . . . . . . Combat | -11 -10 -10 -10 -9 -8 -8 -7 -7 -7 -7 -6 -6 -5 -5 -------- Run | Yrd Mat Min Exi Min Mat Gar Fac Gar Fac Gar Fac Gar Fac Gar Hostile Shots Fired 969 | . 70 . . . 78 72 103 57 . 65 16 199 47 262 Missed 326 | . 22 . . . 24 24 31 31 . 19 7 55 19 94 Hits 643 | . 48 . . . 54 48 72 26 . 46 9 144 28 168 Melee 10 | . . . . . . 5 . 4 . . . . 1 . Projectile 633 | . 48 . . . 54 43 72 22 . 46 9 144 27 168 AOE 4 | . . . . . . 2 . . . . 2 . . . Critical Strikes 17 | . . . . . 3 6 2 . . 3 . 2 1 . Damage Taken 10658 | . 492 . . . 951 1152 792 403 . 628 316 2541 788 2595 Core 2661 | . 132 . . . 203 302 95 . . 102 16 801 106 904 Absorbed by Shields 256 | . . . . . . . 149 . . . . 15 . 92 Core Remaining (%) 45 | 100 . . . 47 . 8 . . . 71 . 3 . . Volleys Fired 472 | 7 34 2 . . 70 37 54 48 . 45 6 114 25 30 Largest 2 | 2 2 2 . . 2 2 2 2 . 2 2 2 2 2 Hottest 110 | 70 70 70 . . 96 110 83 68 . 56 56 108 94 62 Shots Fired 706 | 14 68 4 . . 109 66 111 65 1 46 11 131 46 34 Gun 456 | 14 68 4 . . 72 59 32 27 1 28 10 115 13 13 Cannon 142 | . . . . . 9 . 79 17 . . . . 30 7 Launcher 69 | . . . . . 28 7 . 21 . 1 . 12 . . Special 39 | . . . . . . . . . . 17 1 4 3 14 Kinetic 362 | 7 34 2 . . 35 . 100 44 1 28 10 38 43 20 Thermal 206 | 7 34 2 . . 34 41 11 . . . . 77 . . Explosive 39 | . . . . . 28 7 . . . . . 4 . . Electromagnetic 60 | . . . . . 12 18 . 21 . 1 . 8 . . Robot Hit Streak 16 | 4 7 5 . . 12 16 9 11 5 10 4 13 5 5 Robot Miss Streak 7 | 3 3 . . . 2 4 7 4 . 2 1 4 5 5 Penetration Max 1 | . . . . . . . . 1 . 1 . 1 . . Secondary Targets 6 | . 3 . . . . 1 . . . . 2 . . . Max Gunslinging Chain 1 | . 1 . . . . 1 . . . . 1 . . . Shots Hit Robots 397 | 8 44 4 . . 66 47 52 30 1 26 9 65 25 20 Core Hits 257 | 4 19 . . . 68 15 29 24 . 6 4 64 21 3 Critical Kills 1 | . . . . . . . . 1 . . . . . . Critical Parts Destroyed . | . . . . . . . . . . . . . . . Critical Strikes 18 | . 1 1 . . 4 4 3 3 . . . 1 1 . Burn 12 | . 1 1 . . 4 4 1 . . . . 1 . . Destroy 1 | . . . . . . . . 1 . . . . . . Blast 5 | . . . . . . . 2 2 . . . . 1 . Melee Attacks . | . . . . . . . . . . . . . . . Impact . | . . . . . . . . . . . . . . . Slashing . | . . . . . . . . . . . . . . . Piercing . | . . . . . . . . . . . . . . . Sneak Attacks . | . . . . . . . . . . . . . . . Combat Hostiles . | . . . . . . . . . . . . . . . Follow-up Attacks . | . . . . . . . . . . . . . . . Damage Inflicted 12266 | 74 451 42 . 12 3148 1024 1432 1217 20 479 152 2108 1857 250 Guns 4940 | 74 451 42 . . 771 765 407 313 20 479 152 1177 155 134 Cannons 2192 | . . . . . 169 . 989 333 . . . . 629 72 Explosions 5042 | . . . . . 2208 259 . 571 . . . 931 1073 . Melee . | . . . . . . . . . . . . . . . Ramming 92 | . . . . 12 . . 36 . . . . . . 44 Kinetic 4489 | 35 176 17 . . 373 . 1300 646 20 479 152 301 784 206 Thermal 3228 | 39 275 25 . . 383 568 96 . . . . 876 966 . Explosive 2949 | . . . . . 2208 259 . . . . . 482 . . Electromagnetic 1508 | . . . . . 184 197 . 571 . . . 449 107 . Impact . | . . . . . . . . . . . . . . . Slashing . | . . . . . . . . . . . . . . . Piercing . | . . . . . . . . . . . . . . . Highest Corruption 19 | . . . . . . . 9 11 11 13 . 19 . . Average Corruption 12 | . . . . . . . 6 10 11 12 . 18 . . Corruption Purged . | . . . . . . . . . . . . . . . Corruption Blocked . | . . . . . . . . . . . . . . . Effects 156 | . . . . . . . 32 30 3 31 . 60 . . Message Errors 36 | . . . . . . . 8 6 1 8 . 13 . . Matter Fused 36 | . . . . . . . 8 9 . 8 . 11 . . Heat Flow Errors 19 | . . . . . . . 3 5 . 3 . 8 . . Energy Discharges 14 | . . . . . . . 4 3 . 1 . 6 . . Parts Rejected 4 | . . . . . . . 1 . . 2 . 1 . . Data Loss (minor) 12 | . . . . . . . 3 2 1 2 . 4 . . Data Loss (major) 9 | . . . . . . . 1 1 . 1 . 6 . . Misfires 9 | . . . . . . . 3 . 1 . . 5 . . Alerts 8 | . . . . . . . 1 1 . 3 . 3 . . Misdirections 1 | . . . . . . . . . . 1 . . . . Weapon Failures 8 | . . . . . . . . 3 . 2 . 3 . . Overload Shots . | . . . . . . . . . . . . . . . Overflow Damage 364 | . . . . . 131 40 38 7 . . . . 132 16 Projectiles 102 | . . . . . 33 . 38 7 . . . . 8 16 Explosions 262 | . . . . . 98 40 . . . . . . 124 . Melee . | . . . . . . . . . . . . . . . Knockbacks 12 | . . . . . . . 7 1 . . . . 3 1 Impact 1 | . . . . . . . 1 . . . . . . . Kinetic 11 | . . . . . . . 6 1 . . . . 3 1 Secondary . | . . . . . . . . . . . . . . . Self-Inflicted Damage 493 | . . . . . 138 144 . 64 . . . . 141 6 Shots 14 | . . . . . 4 3 . 4 . . . . 3 . Rammed 1 | . . . . . . . . . . . . . . 1 Targets Rammed 11 | . . . . 2 . . 4 . . . . . . 5 Kicked 10 | . . . . 2 . . 4 . . . . . . 4 Crushed . | . . . . . . . . . . . . . . . Highest Temperature 332 | 92 332 50 . . 35 9 166 201 . 220 8 226 . 56 Average Temperature 55 | 41 109 28 . . 12 9 21 77 . 71 5 54 . 19 Received Heat Transfer 2956 | . 186 . . . 297 243 108 84 . 156 99 804 198 781 Effects 2 | . 2 . . . . . . . . . . . . . Energy Bleed 1 | . 1 . . . . . . . . . . . . . Matter Decay 1 | . 1 . . . . . . . . . . . . . Siege Activations . | . . . . . . . . . . . . . . . Martial Activations . | . . . . . . . . . . . . . . . Shielding Activations . | . . . . . . . . . . . . . . . Robots Disrupted . | . . . . . . . . . . . . . . . Combat Hostiles . | . . . . . . . . . . . . . . . Robots Corrupted . | . . . . . . . . . . . . . . . Combat Hostiles . | . . . . . . . . . . . . . . . Parts Fried 6 | . . . . . 1 1 . 4 . . . . . . Impact Corruptions . | . . . . . . . . . . . . . . . Robots Melted 2 | . . . . . . . . . . . . 2 . . Combat Hostiles 2 | . . . . . . . . . . . . 2 . . Parts Melted 9 | . 1 . . . 3 2 1 . . . . 2 . . Heat Transferred 6441 | 111 888 148 . . 1184 1406 259 . . . . 1895 550 . Parts Sabotaged . | . . . . . . . . . . . . . . . Parts Stolen . | . . . . . . . . . . . . . . . Parts Stripped . | . . . . . . . . . . . . . . . Power Chain Reactions 2 | . . . . . . . . 1 . . . 1 . . Alert | -11 -10 -10 -10 -9 -8 -8 -7 -7 -7 -7 -6 -6 -5 -5 ------- Run | Yrd Mat Min Exi Min Mat Gar Fac Gar Fac Gar Fac Gar Fac Gar Maximum Alert Level 3 | . . . . . 2 2 1 3 2 3 2 3 3 2 Low Security (%) 23 | 100 100 100 . 100 7 . 39 . . . . . . . Level 1 19 | . . . . . 11 . 60 43 29 32 1 8 . 4 Level 2 45 | . . . . . 81 100 . 38 70 57 98 54 55 95 Level 3 11 | . . . . . . . . 18 . 10 . 37 44 . Level 4 . | . . . . . . . . . . . . . . . Level 5 . | . . . . . . . . . . . . . . . High Security . | . . . . . . . . . . . . . . . Max Security . | . . . . . . . . . . . . . . . Peak Influence 1039 | 5 100 27 . . 690 646 338 783 410 828 468 1039 873 618 Initial 578 | . . 27 . . . 421 338 215 410 273 434 257 545 578 Average 412 | 1 27 2 . . 476 537 214 470 400 476 435 667 700 521 Influence Increases 5534 | 10 227 . . . 1166 315 510 578 . 685 94 1152 625 172 Destroy 0b10 Robot/C 2460 | . 160 . . . 580 200 160 220 . 380 60 440 220 40 Destroy 0b10 Robot/NC 195 | 10 5 . . . 85 . 80 . . 5 . . 10 . Destroy Leader 386 | . 32 . . . 110 20 92 20 . 40 10 20 42 . Allied During Kill 281 | . . . . . 54 . . . . 140 24 38 25 . Successful Hack 97 | . . . . . . . 65 14 . . . 14 4 . Select Force Hacks 90 | . 30 . . . . . 60 . . . . . . . Disable Machine 450 | . . . . . 195 . 15 . . . . . 225 15 Anti-Garrison Action 700 | . . . . . . . . 100 . 100 . 450 . 50 Destroy Structure 485 | . . . . . 142 35 38 59 . 20 . 100 84 7 Lose Combat Pursuer 390 | . . . . . . 60 . 165 . . . 90 15 60 Influence Decreases 5154 | 10 157 70 . . 518 317 848 103 393 247 554 481 838 618 Entered New Map 2408 | . . 43 . . . 227 308 93 373 117 394 111 494 248 Time Decay 1476 | 10 127 27 . . 428 . 530 . 20 . 80 . 254 . Lost Part 610 | . 30 . . . 30 90 10 10 . 10 40 250 10 130 Lost Ally 660 | . . . . . 60 . . . . 120 40 120 80 240 Squads Dispatched 18 | . 2 . . . 2 . 8 . . . 3 . 3 . Investigation 5 | . 2 . . . . . 2 . . . 1 . . . Extermination 5 | . . . . . . . 4 . . . . . 1 . Reinforcement 5 | . . . . . 2 . 2 . . . . . 1 . Assault 1 | . . . . . . . . . . . . . 1 . Garrison 2 | . . . . . . . . . . . 2 . . . Intercept . | . . . . . . . . . . . . . . . Searches Triggered . | . . . . . . . . . . . . . . . Construction Impeded 1 | . . . . . . . . . . . . . 1 . Haulers Reinforced . | . . . . . . . . . . . . . . . Active Scanning Responses . | . . . . . . . . . . . . . . . Cargo Convoy Interrupts . | . . . . . . . . . . . . . . . Stealth | -11 -10 -10 -10 -9 -8 -8 -7 -7 -7 -7 -6 -6 -5 -5 --------- Run | Yrd Mat Min Exi Min Mat Gar Fac Gar Fac Gar Fac Gar Fac Gar Distress Signals 4 | . . . . . 2 . . . . . . . 2 . Communications Jammed . | . . . . . . . . . . . . . . . Distress Signals . | . . . . . . . . . . . . . . . Times Spotted 200 | . 8 . . . 43 12 21 20 . 31 5 31 10 19 Peak Tracking Total 9 | . 4 . . . 9 4 4 4 . 4 3 7 5 6 Tactical Retreats 18 | . . . . . . 3 . 6 . . . 4 1 4 Traps | -11 -10 -10 -10 -9 -8 -8 -7 -7 -7 -7 -6 -6 -5 -5 ------- Run | Yrd Mat Min Exi Min Mat Gar Fac Gar Fac Gar Fac Gar Fac Gar Traps Triggered 23 | . 1 . . . . 5 1 3 1 3 . 5 1 3 Indirectly 3 | . . . . . . . . 3 . . . . . . Trap Hack Attempts . | . . . . . . . . . . . . . . . Triggered . | . . . . . . . . . . . . . . . Disarmed . | . . . . . . . . . . . . . . . Reprogrammed . | . . . . . . . . . . . . . . . Reused . | . . . . . . . . . . . . . . . Traps Extracted . | . . . . . . . . . . . . . . . Installed . | . . . . . . . . . . . . . . . Triggered . | . . . . . . . . . . . . . . . Machines | -11 -10 -10 -10 -9 -8 -8 -7 -7 -7 -7 -6 -6 -5 -5 ---------- Run | Yrd Mat Min Exi Min Mat Gar Fac Gar Fac Gar Fac Gar Fac Gar Machines Disabled 38 | . . . . . 13 . 1 2 . 2 . 3 15 2 Max in Single Turn 9 | . . . . . 3 . 1 1 . 1 . 1 9 1 Garrison Relay 8 | . . . . . . . . 2 . 2 . 3 . 1 Machines Repaired . | . . . . . . . . . . . . . . . Machines Dismantled . | . . . . . . . . . . . . . . . Machines Sabotaged . | . . . . . . . . . . . . . . . Overloaded Fab Kills . | . . . . . . . . . . . . . . . Hacking | -11 -10 -10 -10 -9 -8 -8 -7 -7 -7 -7 -6 -6 -5 -5 --------- Run | Yrd Mat Min Exi Min Mat Gar Fac Gar Fac Gar Fac Gar Fac Gar Machines Accessed 33 | . 3 . . 1 4 1 13 2 1 . 2 2 4 . Terminals 22 | . 2 . . . 3 1 9 2 . . 1 2 2 . Fabricators 1 | . . . . . . . . . . . . . 1 . Repair Stations . | . . . . . . . . . . . . . . . Recycling Units 4 | . 1 . . . . . 3 . . . . . . . Scanalyzers . | . . . . . . . . . . . . . . . Garrison Access 5 | . . . . . 1 . 1 . 1 . 1 . 1 . Total Hacks 57 | . 5 . . 1 8 1 26 3 1 . 3 3 6 . Successful 21 | . 3 . . 1 1 . 10 1 1 . 1 1 2 . Failed 36 | . 2 . . . 7 1 16 2 . . 2 2 4 . Catastrophic 6 | . . . . . 2 1 1 . . . . 1 1 . Database Lockouts . | . . . . . . . . . . . . . . . Manual 11 | . 1 . . . 2 . 6 . . . 2 . . . Terminals 45 | . 4 . . . 7 1 22 3 . . 2 3 3 . Fabricators 2 | . . . . . . . . . . . . . 2 . Repair Stations . | . . . . . . . . . . . . . . . Recycling Units 4 | . 1 . . . . . 3 . . . . . . . Scanalyzers . | . . . . . . . . . . . . . . . Garrison Access 5 | . . . . . 1 . 1 . 1 . 1 . 1 . Terminal Hacks 12 | . 2 . . 1 . . 6 1 . . . 1 1 . Prototype ID Bank 3 | . 1 . . . . . 2 . . . . . . . Open Door 1 | . . . . 1 . . . . . . . . . . Branch Access Points 1 | . 1 . . . . . . . . . . . . . Emergency Access Points 2 | . . . . . . . . . . . . 1 1 . Garrison Index 1 | . . . . . . . 1 . . . . . . . Locate Traps 2 | . . . . . . . 2 . . . . . . . Dispatch Records 1 | . . . . . . . 1 . . . . . . . Garrison Registry 1 | . . . . . . . . 1 . . . . . . Fabricator Hacks . | . . . . . . . . . . . . . . . Repair Station Hacks . | . . . . . . . . . . . . . . . Recycling Unit Hacks . | . . . . . . . . . . . . . . . Scanalyzer . | . . . . . . . . . . . . . . . Garrison Access Hacks 5 | . . . . . 1 . 1 . 1 . 1 . 1 . Unlock Access 5 | . . . . . 1 . 1 . 1 . 1 . 1 . Unauthorized Hacks 4 | . 1 . . . . . 3 . . . . . . . Terminals 1 | . . . . . . . 1 . . . . . . . Assimilate 1 | . . . . . . . 1 . . . . . . . Fabricators . | . . . . . . . . . . . . . . . Repair Stations . | . . . . . . . . . . . . . . . Recycling Units 3 | . 1 . . . . . 2 . . . . . . . Tunnel 3 | . 1 . . . . . 2 . . . . . . . Scanalyzers . | . . . . . . . . . . . . . . . Garrison Access . | . . . . . . . . . . . . . . . Data Cores Recovered 3 | . . . . . 2 . 1 . . . . . . . Used . | . . . . . . . . . . . . . . . Hacking Detections 21 | . 1 . . . 3 1 9 2 . . 1 1 3 . Full Trace Events 1 | . . . . . . . . . . . 1 . . . Feedback Events . | . . . . . . . . . . . . . . . Feedback Blocked . | . . . . . . . . . . . . . . . Robot Schematics Acquired . | . . . . . . . . . . . . . . . Robots Built . | . . . . . . . . . . . . . . . Authchips . | . . . . . . . . . . . . . . . Time . | . . . . . . . . . . . . . . . Total Robot Build Rating . | . . . . . . . . . . . . . . . Part Schematics Acquired . | . . . . . . . . . . . . . . . Parts Built . | . . . . . . . . . . . . . . . Authchips . | . . . . . . . . . . . . . . . Time . | . . . . . . . . . . . . . . . Total Part Build Rating . | . . . . . . . . . . . . . . . Parts Repaired . | . . . . . . . . . . . . . . . Time . | . . . . . . . . . . . . . . . Parts Recycled . | . . . . . . . . . . . . . . . Recycled Matter . | . . . . . . . . . . . . . . . Retrieved Matter . | . . . . . . . . . . . . . . . Retrieved Components . | . . . . . . . . . . . . . . . Parts Scanalyzed . | . . . . . . . . . . . . . . . Part Schematics Acquired . | . . . . . . . . . . . . . . . Parts Damaged . | . . . . . . . . . . . . . . . Bothacking | -11 -10 -10 -10 -9 -8 -8 -7 -7 -7 -7 -6 -6 -5 -5 ------------ Run | Yrd Mat Min Exi Min Mat Gar Fac Gar Fac Gar Fac Gar Fac Gar Used RIF Installer 5 | . . . . . . 1 . 1 . 1 . 1 . 1 Hotswap 1 | . . . . . . . . . . . . 1 . . Command Fork 1 | . . . . . . . . 1 . . . . . . Autooverride 2 | . . . . . . . . . . 1 . . . 1 Robots Hacked 27 | . . . . . . . . . . 11 1 4 1 10 Non-combat . | . . . . . . . . . . . . . . . Combat 27 | . . . . . . . . . . 11 1 4 1 10 Autooverrided 1 | . . . . . . . . . . . . 1 . . Robot Hacks Applied 26 | . . . . . . . . . . 11 1 3 1 10 overload_power 1 | . . . . . . . . . . 1 . . . . overwrite_iff 8 | . . . . . . . . . . 1 . 1 . 6 formatsys_high 17 | . . . . . . . . . . 9 1 2 1 4 Relay Couplers Released 32 | . . . . . . . . 8 . 8 . 12 . 4 Machine Destruction 32 | . . . . . . . . 8 . 8 . 12 . 4 Attached 18 | . . . . . . . . . . 7 . 7 . 4 Fabnet Peak Effective % . | . . . . . . . . . . . . . . . Robots Rewired 3 | . . . . . . . . . . . . 3 . . Allies Hacked 1 | . . . . . . . . . . 1 . . . . Hacks Repelled . | . . . . . . . . . . . . . . . Allies | -11 -10 -10 -10 -9 -8 -8 -7 -7 -7 -7 -6 -6 -5 -5 -------- Run | Yrd Mat Min Exi Min Mat Gar Fac Gar Fac Gar Fac Gar Fac Gar Total Allies 38 | . . 4 . . . . 1 . . 11 1 7 1 13 Largest Group 7 | . . 4 4 3 3 . 1 . . 7 6 4 3 5 Highest-Rated Group 145 | . . 71 71 40 40 . 26 . . 145 117 85 60 58 Highest-Rated Ally 41 | . . 31 31 16 16 . 26 . . 32 32 32 30 41 Total Orders 5 | . . . . . 5 . . . . . . . . . EXPLORE 1 | . . . . . 1 . . . . . . . . . RETURN 4 | . . . . . 4 . . . . . . . . . Ally Attacks 262 | . . . . . 64 . . . . 71 18 36 27 46 Total Damage 3664 | . . . . . 574 . . . . 1165 185 624 447 669 Kills 35 | . . . . . 7 . . . . 19 1 6 2 . Allies Corrupted 1 | . . . . . . . . . . . . . 1 . Allies Melted 1 | . . . . . . . . . . . . 1 . . Intel | -11 -10 -10 -10 -9 -8 -8 -7 -7 -7 -7 -6 -6 -5 -5 ------- Run | Yrd Mat Min Exi Min Mat Gar Fac Gar Fac Gar Fac Gar Fac Gar Active Infowar (turns) 6063 | 14 314 458 182 346 1054 80 1450 818 57 780 160 350 . . Optics 3615 | . . . . . . . 1450 818 57 780 160 350 . . Sensors 839 | . . . . . 759 80 . . . . . . . . Terrain 4159 | 14 314 458 182 346 909 . 1088 788 57 3 . . . . Robot Analysis Total . | . . . . . . . . . . . . . . . Derelict Logs Recovered 3 | . . 2 . 1 . . . . . . . . . . Drone Launches 5 | . . . . . 5 . . . . . . . . . Drone Recoveries 4 | . . . . . 4 . . . . . . . . . Exploration | -11 -10 -10 -10 -9 -8 -8 -7 -7 -7 -7 -6 -6 -5 -5 ------------- Run | Yrd Mat Min Exi Min Mat Gar Fac Gar Fac Gar Fac Gar Fac Gar Turns Passed 9279 | 84 362 493 182 488 1054 697 1496 818 57 780 160 1615 559 434 Spaces Moved 5664 | 46 199 320 150 330 691 267 890 516 43 490 101 999 347 275 Core 67 | 3 3 . . . . . . . . . . 26 . 35 Treads 294 | . . . . . . 111 183 . . . . . . . Legs 4789 | 43 196 320 150 330 199 147 694 516 43 490 101 973 347 240 Wheels 514 | . . . . . 492 9 13 . . . . . . . Hover . | . . . . . . . . . . . . . . . Flight . | . . . . . . . . . . . . . . . Fastest Speed 50 | 50 120 120 120 120 95 120 126 123 123 123 125 120 120 50 Average Speed 126 | 115 122 120 120 120 114 206 134 125 124 123 125 122 121 118 Slowest Speed 500 | 120 250 120 120 120 190 260 240 126 195 126 125 500 190 260 Overloaded Moves . | . . . . . . . . . . . . . . . Propulsion Burnouts . | . . . . . . . . . . . . . . . Robots Hopped . | . . . . . . . . . . . . . . . Potential Cave-ins . | . . . . . . . . . . . . . . . Cave-ins Triggered . | . . . . . . . . . . . . . . . Exploration Rate (%) 38 | 5 40 64 52 68 62 49 38 41 3 53 3 64 12 30 Regions Visited 14 Branch Regions 3 Pre-discovered Areas 5 | . 1 1 . 1 . . 2 . . . . . . . Known Exits Taken 6 | . 1 . . . 1 . 1 . 1 . 1 . 1 . Unknown Exits Taken 4 | 1 . 1 1 1 . . . . . . . . . . Scrap Searched 3 | . . 2 . 1 . . . . . . . . . . Spaces Dug 23 | . . . . . 10 . 13 . . . . . . . Terrain Destroyed 295 | . . . . . 168 24 40 5 . . . 7 50 1 Melee . | . . . . . . . . . . . . . . . Projectile 54 | . . . . . . . 40 1 . . . 1 11 1 AOE 241 | . . . . . 168 24 . 4 . . . 6 39 . Terrain Rammed . | . . . . . . . . . . . . . . . Walls Destroyed . | . . . . . . . . . . . . . . . Machines Disabled . | . . . . . . . . . . . . . . . Actions | -11 -10 -10 -10 -9 -8 -8 -7 -7 -7 -7 -6 -6 -5 -5 --------- Run | Yrd Mat Min Exi Min Mat Gar Fac Gar Fac Gar Fac Gar Fac Gar Total 7071 | 61 255 427 152 421 864 347 1082 616 45 621 122 1247 449 362 Wait 504 | . 17 100 3 83 35 13 83 24 . 43 4 45 43 11 Move 5646 | 45 198 319 149 329 690 265 889 514 42 488 100 997 346 275 Hop . | . . . . . . . . . . . . . . . Pick Up 81 | 2 1 3 . 2 11 15 10 9 . 6 . 13 4 5 Fast Attach 88 | 7 3 1 . . 14 4 11 1 3 6 3 24 8 3 Attach 42 | . . . . . 2 5 4 3 . 4 3 9 4 8 Detach 10 | . . . . . 1 . 2 . . . 1 . 3 3 Swap 64 | . 1 . . 3 14 3 6 8 . 10 4 7 4 4 Drop 97 | . 1 2 . 2 27 5 19 9 . 6 1 9 12 4 Fire 472 | 7 34 2 . . 70 37 54 48 . 45 6 114 25 30 Melee . | . . . . . . . . . . . . . . . Ram 1 | . . . . . . . . . . . . . . 1 Kick 10 | . . . . 2 . . 4 . . . . . . 4 Crush . | . . . . . . . . . . . . . . . Escape Stasis 40 | . . . . . . . . . . 10 . 16 . 14 Rewire 16 | . . . . . . . . . . 3 . 13 . . Trap . | . . . . . . . . . . . . . . . Miscellaneous . | . . . . . . . . . . . . . . . Route ------- -11/Scrapyard -10/Materials (discovered 2 exits: [*Mat] / *Min) -10/Mines (discovered 3 exits: [*Mat x2] / [*Exi]) -10/Exiles -9/Mines -8/Materials (discovered 2 exits: *Fac / Gar) -8/Garrison -7/Factory (discovered 3 exits: *Fac / [*Low] / Gar) -7/Garrison (discovered 4 exits: *Fac x4) -7/Factory -7/Garrison (discovered 2 exits: *Fac x2) -6/Factory -6/Garrison (discovered 4 exits: *Fac x3 / [*Fac]) -5/Factory -5/Garrison History --------- Turn | Location | Event 6 | -11/Scrapyard | Discovered new exit (range 15) 85 | -11/Scrapyard | Entered Materials 266 | -10/Materials | Discovered new exit (range 14) 301 | -10/Materials | Build established: Mutant 392 | -10/Materials | Core integrity fell below 50% 409 | -10/Materials | Identified exit to Mines 447 | -10/Materials | Entered Mines 489 | -10/Mines | YI-UF0 nonchalantly dropped a Grenade Launcher on the ground 603 | -10/Mines | Discovered new exit (range 14) 609 | -10/Mines | Learned Materials garrison access intel 649 | -10/Mines | Build established: Scavenger-Mutant 768 | -10/Mines | Discovered new exit (range 10) 807 | -10/Mines | Assisted by bots powering up and referring to "LRC-V3" 840 | -10/Mines | Learned location of Zion (-6) 845 | -10/Mines | Received a Mining Laser from a helpful Derelict 924 | -10/Mines | Deemed a non-threat by the Exiles lab entrance 925 | -10/Mines | Discovered new exit (range 5) 940 | -10/Mines | Entered Exiles 940 | -10/Exiles | Accompanied by 4 allies 969 | -10/Exiles | Met 8R-AWN 990 | -10/Exiles | Met EX-HEX 1024 | -10/Exiles | Met EX-BIN 1040 | -10/Exiles | Met EX-DEC 1104 | -10/Exiles | Discovered new exit (range 14) 1122 | -10/Exiles | Entered Mines 1122 | -9/Mines | Accompanied by 3 allies 1199 | -9/Mines | Found the Drone Emporium 1203 | -9/Mines | Found Prototype Device 1204 | -9/Mines | Identified Thief Drone Bay 1340 | -9/Mines | Received a Rocket Launcher from a helpful Derelict 1466 | -9/Mines | A weapon hastily lodged in a ceiling crevice suddenly fell to the ground 1513 | -9/Mines | Found a hidden stash of uninstalled traps 1588 | -9/Mines | Discovered new exit (range 10) 1610 | -9/Mines | Entered Materials 1610 | -8/Materials | Accompanied by 3 allies 1610 | -8/Materials | Evolved 4 slots: Propulsion x1, Utility x3 1611 | -8/Materials | Loaded intel: 1 garrison access location 2198 | -8/Materials | Build established: Skirmisher 2443 | -8/Materials | Discovered new exit (range 5) 2661 | -8/Materials | Identified exit to Garrison 2664 | -8/Materials | Entered Garrison 2761 | -8/Garrison | Core integrity fell below 50% 2807 | -8/Garrison | Build established: Scavenger-Mutant 3069 | -8/Garrison | Core integrity fell below 20% 3106 | -8/Garrison | Lost 3 parts (1n1u1w) 3148 | -8/Garrison | Triggered checkpoint 3298 | -8/Garrison | Discovered new exit (range 14) 3322 | -8/Garrison | Installed Relay Interface Framework 3361 | -8/Garrison | Entered Factory 3361 | -7/Factory | Evolved 2 slots: Utility x2 3669 | -7/Factory | Discovered new exit (range 4) 4133 | -7/Factory | Discovered new exit (range 13) 4261 | -7/Factory | Build established: Scavenger-Skirmisher 4853 | -7/Factory | Identified exit to Garrison 4857 | -7/Factory | Entered Garrison 4929 | -7/Garrison | System corruption reached 10% 5058 | -7/Garrison | Expanded RIF knowledge: Command Fork 5184 | -7/Garrison | Triggered checkpoint 5260 | -7/Garrison | Garrison Relay disabled 5353 | -7/Garrison | Triggered checkpoint 5384 | -7/Garrison | Triggered checkpoint 5600 | -7/Garrison | Discovered new exit (range 77) 5600 | -7/Garrison | Discovered new exit (range 16) 5600 | -7/Garrison | Discovered new exit (range 65) 5600 | -7/Garrison | Discovered new exit (range 75) 5632 | -7/Garrison | Garrison Relay disabled 5675 | -7/Garrison | Entered Factory 5727 | -7/Factory | Identified exit to Garrison 5732 | -7/Factory | Entered Garrison 5778 | -7/Garrison | Triggered checkpoint 5827 | -7/Garrison | Garrison Relay disabled 5945 | -7/Garrison | Triggered checkpoint 5945 | -7/Garrison | Triggered checkpoint 6025 | -7/Garrison | Build established: Bothacker-Mutant 6163 | -7/Garrison | Discovered new exit (range 12) 6165 | -7/Garrison | Triggered checkpoint 6230 | -7/Garrison | Triggered checkpoint 6335 | -7/Garrison | Garrison Relay disabled 6388 | -7/Garrison | Triggered checkpoint 6396 | -7/Garrison | Triggered checkpoint 6452 | -7/Garrison | Discovered new exit (range 19) 6458 | -7/Garrison | Triggered checkpoint 6492 | -7/Garrison | Expanded RIF knowledge: Autooverride 6512 | -7/Garrison | Entered Factory 6512 | -6/Factory | Accompanied by 5 allies 6512 | -6/Factory | Evolved 2 slots: Propulsion x1, Utility x1 6571 | -6/Factory | Garrison activated, responded to threat 6616 | -6/Factory | Lost 3 parts (3u) 6671 | -6/Factory | Identified exit to Garrison 6672 | -6/Factory | Entered Garrison 6672 | -6/Garrison | Accompanied by 3 allies 6730 | -6/Garrison | Garrison Relay disabled 6780 | -6/Garrison | Spotted B-75 Beast 6780 | -6/Garrison | Spotted B-75 Beast 6846 | -6/Garrison | Triggered checkpoint 6855 | -6/Garrison | Garrison Relay disabled 6958 | -6/Garrison | Spotted B-75 Beast 6963 | -6/Garrison | Triggered checkpoint 6976 | -6/Garrison | Triggered checkpoint 7024 | -6/Garrison | Lost 5 allies 7024 | -6/Garrison | Core integrity fell below 50% 7057 | -6/Garrison | Lost 13 parts (1p5n3u4w) 7086 | -6/Garrison | System corruption reached 10% 7169 | -6/Garrison | Destroyed B-75 Beast 7204 | -6/Garrison | Warlord forces raided the area 7208 | -6/Garrison | Triggered checkpoint 7214 | -6/Garrison | Discovered new exit (range 9) 7278 | -6/Garrison | Triggered checkpoint 7355 | -6/Garrison | Lost 6 allies 7382 | -6/Garrison | Discovered new exit (range 11) 7411 | -6/Garrison | Build established: Scavenger-Mutant 7414 | -6/Garrison | Triggered checkpoint 7419 | -6/Garrison | Core integrity fell below 20% 7453 | -6/Garrison | Lost 3 parts (1p1n1u) 7585 | -6/Garrison | Discovered new exit (range 12) 7616 | -6/Garrison | Triggered checkpoint 7658 | -6/Garrison | Triggered checkpoint 7830 | -6/Garrison | Triggered checkpoint 8025 | -6/Garrison | Discovered new exit (range 5) 8160 | -6/Garrison | Garrison Relay disabled 8216 | -6/Garrison | Expanded RIF knowledge: Hotswap 8287 | -6/Garrison | Entered Factory 8287 | -5/Factory | Accompanied by 3 allies 8287 | -5/Factory | Evolved 2 slots: Utility x2 8587 | -5/Factory | First assault squad dispatched 8845 | -5/Factory | Identified exit to Garrison 8846 | -5/Factory | Entered Garrison 8932 | -5/Garrison | Triggered checkpoint 8952 | -5/Garrison | Garrison Relay disabled 8953 | -5/Garrison | Build established: Botlord-Mutant 9013 | -5/Garrison | Spotted B-75 Beast 9033 | -5/Garrison | Triggered checkpoint 9034 | -5/Garrison | Triggered checkpoint 9046 | -5/Garrison | Triggered checkpoint 9087 | -5/Garrison | Lost 9 allies 9149 | -5/Garrison | Lost 3 parts (1n1u1w) 9254 | -5/Garrison | Released all parts (7) 9259 | -5/Garrison | Core integrity fell below 50% 9270 | -5/Garrison | Expanded RIF knowledge: Autooverride 9277 | -5/Garrison | Core integrity fell below 20% 9280 | -5/Garrison | Destroyed by X-77 Beamer with Gatling Laser Last Messages --------------- 09254_ Released Rnf. Fission Core. 09254_ Released Relay Coupler [Grunt]. 09254_ Released Relay Coupler [Swarmer]. 09254_ Released Relay Coupler [Hunter]. 09254_ Dropped Relay Coupler [Sentry]. 09255_ Triggered Stasis Trap. 09255_ A bubble of rippling energy engulfs the area. 09255_ Field strength at 94. 09255_ Field strength at 88. 09256_ Field strength at 60. 09257_ Field strength at 54. 09258_ Field strength at 23. 09259_ Field strength at 17. 09260_ Field strength at 11. 09261_ Stasis field depleted. 09262_ Acquired Imp. Remote Datajack. Initiating installation procedure... 09270_ Expanded RIF knowledge: Autooverride. 09275_ Slammed into X-77 Beamer. 09277_ Detecting nearby RIF Installer. Map ----- +----------------------------------------------------+ | ?????????????????????????????????????????????????? | | ?????????????????????????????????????????????????? | | ?????????????????????????????????????????????????? | | ?????????????????????????????????????????????????? | | ?????????????????????????????????????????????????? | | ?????????????????????????????????????????????????? | | ?????????????????????????????????????????????????? | | ?????????????????????????????????????????????????? | | ?????????????????????????????????????????????????? | | ?????????????????????????????????????????????????? | | ?????????????????????????????????????????????????? | | ??????????????#####??????????????????????????????? | | ??????????????#"""#??????????????????????????????? | | ??????????????#" "#??????????????????????????????? | | ??????????????#" "#??????????????????????????????? | | ??????????????#" "#??????????????????????????????? | | ??????????????# #??????????????????????????????? | | ??????????????## ##??????????????????????????????? | | ???????????????# #???????????????????????????????? | | ???????????????# #???????????????????????????????? | | ???????????###?# #???????????????????????????????? | | ???????????#""?# #???????????????????????????????? | | ???????????# T?# #???????????????????????????????? | | ???????????# "?# #???????????#???????????????????? | | ???????????# ###%########## #???????????????????? | | ???????????#! ! x @ #????""""???????????? | | ???????????#! ! x #???????"???????????? | | ???????????#!*########### ####????""""???????????? | | ???????????#!!#?????????# #??????????????????????? | | ???????????#!*#?????????# #??????????????????????? | | ???????????# #?????????# #??????????????????????? | | ???????????# %#?????????# #??????????????????????? | | ?????####??# #?????????# #??????????????????????? | | ?????# ?# #?????????# #??????????????????????? | | ## ## ## ##????????? ???????????????????????? | | # #?????????#???????????????????????? | | # #?????????????????????????????????? | | # =% ##????????????????????????????????? | | # ## ##%[="#????????????????????????????????? | | # % ## ##== ###???????????????????????????????? | | " [ % #???????????????????????????????? | | [* #???????????????????????????????? | | % %#???????????????????????????????? | | %= #???????????#####???????????????? | | # ## ## ###???????????#"# #???????????????? | | # ## ## =#?????????????#" #???????????????? | | # ^ %#?????????????# * #???????????????? | | # ^ +?????????????#" #???????????????? | | # ^ #?????????????#"# #???????????????? | | ## ## ## ##?????????????### #???????????????? | +----------------------------------------------------+ Best States ------------- Heat Dissipation 109 Energy Generation 19 Energy Capacity 310 Matter Stores 300 Matter Capacity 300 Sight Range 20 Robot Scan Range 15 Terrain Scan Range 16 Terrain Scan Density 210 Armor Coverage 450 Resistance: EM 25 Evasion (%) 70 Targeting Accuracy 8 Recoil Reduction 2 Kinecelleration 30 Relay Coupler Types 4 Relay Coupler Value 108 Item Schematics ----------------- None Robot Schematics ------------------ None Fabricated ------------ Nothing Repaired ---------- Nothing Alien Tech Used ----------------- None Achievements -------------- None Challenges ------------ None Game ------ Seed RagnarokWeldingShearcannon Manual? 0 Play Time 01:38:56 Cumulative 283.0 hours Start 2025.07.25 @ 20:09:29 End 2025.07.26 @ 12:01:58 Sessions 3 Manual Loads 0 Difficulty Rogue Special Mode None Game No. 109 Rogue 38 Adventurer 68 Explorer 3 Win Type - Total 23 Types 15/1/1/4/1/0/0/0/0/1 Lore% 74 Gallery% 72 Achievement% 69 Wizard Run 0 Options --------- Layout 0 ASCII 0 Keyboard 0 Movement Numpad Keybinds 0 Fullscreen 1 Font 24/Smallcaps Map View 76x50 Zoom Use 0% Tactical HUD 1 Map Filters NONE Filters NONE Steam 1 RUN: 447a047e-c887-4484-a316-f2ce4d96b219